bitfinex-derivatives/quotes_ETHF0:USTF0_20241228
["timestamp","ask_amount","ask_price","bid_price","bid_amount"]
[1735409428238,14.57022975,3393.5,3393.4,0.66636257]
[1735409428424,14.86542975,3393.5,3393.4,0.66636257]
[1735409428643,14.86542975,3393.5,3393.4,0.37116257]
[1735409428829,14.57022975,3393.5,3393.1,0.049]
[1735409429039,0.29522,3393.2,3393.1,0.34423]
[1735409429420,0.29522,3393.2,3393.1,0.049]
[1735409429616,0.4399,3393.4,3393.1,0.049]
[1735409429828,0.29527,3392.8,3392.6,0.29527]
[1735409430031,0.4422,3392.7,3392.6,0.29527]
[1735409430223,0.73747,3392.7,3392.6,0.29527]
[1735409430520,3.65,3392.7,3392.2,4.63901495]
[1735409430719,3.65,3392.7,3392.3,0.2953]
[1735409430930,3.65,3392.7,3392.2,4.63901495]
[1735409431125,8.69341389,3392.7,3391.9,4.63901495]
[1735409431330,1.65900542,3392.6,3391.9,4.63901495]
[1735409431516,0.2953,3392.4,3392.2,0.29531]
[1735409431722,0.29531,3392.3,3392.1,0.29532]
[1735409432731,0.2953,3392.4,3392.2,0.2953]
[1735409432924,0.44285508,3392.3,3392.2,0.29531]
[1735409434127,0.72811,3392.3,3392.1,0.29532]
[1735409434329,0.29531,3392.2,3392.1,0.29532]
[1735409434525,0.4328,3392.3,3392.2,0.29531]
[1735409434729,3.9359,3392.3,3392.2,0.29531]
[1735409435026,3.9359,3392.3,3391.7,4.39158]
[1735409435237,6.23090956,3392.3,3392.1,0.29532]
[1735409435550,5.93560956,3392.3,3392.2,0.29531]
[1735409436535,6.23090956,3392.3,3392.2,0.29531]
[1735409437533,5.93560956,3392.3,3392.2,0.29531]
[1735409438437,0.29531,3392.2,3392.0,0.29532]
[1735409438654,0.29531,3392.2,3392.1,0.29532]
[1735409439430,0.29533,3392.0,3391.9,0.29533]
[1735409439635,0.29532,3392.2,3392.0,0.29532]
[1735409439830,3.6406,3392.3,3392.0,0.29532]
[1735409439831,0.29532,3392.1,3392.0,0.29532]
[1735409440031,0.29532,3392.1,3391.9,0.29533]
[1735409440536,0.29532,3392.1,3391.5,0.2944]
[1735409440834,0.29532,3392.1,3391.5,1.03283]
[1735409441136,3.93591,3392.3,3392.2,0.29531]
[1735409441330,5.93560956,3392.3,3392.1,0.29531]
[1735409441632,0.29531,3392.2,3391.6,0.73842]
[1735409442138,0.29531,3392.2,3392.1,0.29532]
[1735409443839,3.6406,3392.3,3391.6,0.73842]
[1735409444139,3.93591,3392.3,3392.2,0.29531]
[1735409445243,3.93591,3392.3,3391.6,0.73842]
[1735409445244,3.6406,3392.3,3391.6,0.73842]
[1735409445449,0.29533,3392.1,3392.0,0.29532]
[1735409446138,0.29535,3391.8,3391.7,0.29534]
[1735409446932,0.29537,3391.6,3391.5,0.29537]
[1735409447448,0.29536,3391.7,3391.6,0.29536]
[1735409447836,3.50316,3391.7,3391.6,0.29536]
[1735409448048,3.2078,3391.7,3391.1,0.8783]
[1735409448343,3.2078,3391.7,3391.2,0.29539]
[1735409448344,0.29539,3391.3,3391.2,0.29539]
[1735409448541,0.4297,3391.6,3391.1,0.2954]
[1735409448542,0.2954,3391.2,3391.1,0.2954]
[1735409448937,0.72507,3391.6,3391.2,0.2954]
[1735409449137,0.72507,3391.6,3390.9,3.2078]
[1735409449936,0.72507,3391.6,3391.2,0.29539]
[1735409450136,0.72507,3391.6,3390.9,3.2078]
[1735409450346,0.4297,3391.6,3390.9,3.94636]
[1735409450543,0.29538,3391.5,3391.3,0.29538]
[1735409450748,0.4297,3391.6,3390.9,3.2078]
[1735409450944,0.72506,3391.6,3391.1,0.29541]
[1735409451133,0.72506,3391.6,3391.0,0.73855]
[1735409451344,0.72506,3391.6,3391.5,0.29537]
[1735409451546,0.4297,3391.6,3391.5,0.29537]
[1735409451942,0.72506,3391.6,3391.5,0.29537]
[1735409452449,0.4297,3391.6,3391.5,0.29537]
[1735409453956,3.2078,3391.7,3391.2,0.73849]
[1735409454145,2.29500956,3391.9,3391.8,0.29535]
[1735409454643,2.29500956,3392.0,3391.9,0.29534]
[1735409455953,3.2078,3392.2,3391.5,0.73842]
[1735409456147,0.4653,3392.3,3391.8,0.73836]
[1735409456456,0.4653,3392.3,3392.2,0.29531]
[1735409456646,3.6731,3392.3,3392.2,0.29531]
[1735409458442,4.1162,3392.3,3392.2,0.29531]
[1735409458747,0.9084,3392.3,3392.2,0.29531]
[1735409461254,0.29533,3392.1,3392.0,0.29532]
[1735409461454,0.29533,3392.1,3391.3,1.65367]
[1735409461455,3.2078,3392.1,3391.3,0.4627]
[1735409461646,3.2078,3391.6,3391.5,0.29537]
[1735409462843,0.29534,3391.9,3391.8,0.29535]
[1735409465551,5.16214542,3392.0,3391.9,0.29534]
[1735409466673,7.45715498,3392.0,3391.9,0.29534]
[1735409466750,2.29500956,3392.0,3391.9,0.29534]
[1735409467352,0.25857956,3392.0,3391.9,0.29534]
[1735409467558,2.1271739,3392.2,3392.1,0.29532]
[1735409467776,1.365029,3392.2,3392.1,5.16212542]
[1735409467956,1.365029,3392.2,3392.1,10.16212542]
[1735409468147,0.723189,3392.2,3392.1,10.16212542]
[1735409468354,0.000429,3392.2,3392.1,10.16212542]
[1735409468560,0.4332,3393.1,3392.9,0.29525]
[1735409468561,4.59001912,3393.0,3392.9,0.29525]
[1735409470457,5.75069851,3393.2,3392.9,0.29525]
[1735409470458,3.2078,3393.5,3393.4,0.29521]
[1735409472557,4.59001912,3393.9,3393.8,0.29517]
[1735409473961,5.75069851,3394.2,3393.4,0.73803]
[1735409474159,0.29513,3394.3,3394.1,0.29514]
[1735409475366,4.86680542,3394.4,3394.2,0.29514]
[1735409475655,4.86680542,3394.4,3394.3,0.29513]
[1735409475656,3.2078,3394.4,3394.3,0.29513]
[1735409477761,3.2078,3394.4,3393.7,3.2078]
[1735409477762,0.29514,3394.3,3393.7,3.2078]
[1735409478058,0.29514,3394.3,3394.2,0.29513]
[1735409480560,5.16193542,3394.4,3394.3,0.29513]
[1735409481063,4.86680542,3394.4,3394.3,0.29513]
[1735409481262,3.50292,3394.4,3394.3,0.29513]
[1735409482466,0.29514,3394.3,3394.2,0.29513]
[1735409491769,3.2078,3394.4,3394.3,0.29513]
[1735409493779,0.8646,3394.8,3394.3,0.29513]
[1735409493970,0.8646,3394.8,3394.7,0.29509]
[1735409496773,1.15969,3394.8,3394.7,0.29509]
[1735409497267,0.8646,3394.8,3394.7,0.29509]
[1735409498277,1.15969,3394.8,3394.7,0.29509]
[1735409499776,0.8646,3394.8,3394.7,0.29509]
[1735409500180,1.15969,3394.8,3394.7,0.29509]
[1735409501975,0.8646,3394.8,3394.7,0.29509]
[1735409503272,1.15969,3394.8,3394.7,0.29509]
[1735409503686,0.29512,3394.6,3394.5,0.2951]
[1735409505181,0.29515,3394.3,3394.2,0.29513]
[1735409505884,3.50295,3394.3,3394.2,0.29513]
[1735409507478,3.2078,3394.3,3394.2,0.29513]
[1735409507693,0.2951,3394.7,3394.6,0.2951]
[1735409512380,0.73794902,3394.7,3394.6,0.2951]
[1735409512684,0.29513,3394.5,3394.4,0.29511]
[1735409513879,0.73797902,3394.5,3394.4,0.29511]
[1735409515282,5.32799814,3394.5,3394.4,0.29511]
[1735409516480,11.75622775,3394.5,3394.4,0.29511]
[1735409517888,7.17933297,3394.5,3394.4,0.29511]
[1735409518786,4.87202478,3394.5,3394.4,0.29511]
[1735409519982,0.29513,3394.5,3394.4,0.29511]
[1735409521700,8.03157013,3394.6,3394.5,0.29511]
[1735409523297,6.91175745,3394.6,3394.5,0.29511]
[1735409524995,17.25269696,3394.6,3394.5,0.29511]
[1735409526489,6.05498139,3394.7,3394.6,0.2951]
[1735409527698,4.87615812,3394.7,3394.6,0.2951]
[1735409528396,4.58105812,3394.7,3394.6,0.2951]
[1735409528787,4.87614812,3394.7,3394.6,0.2951]
[1735409528992,4.0724,3394.8,3394.4,0.73781]
[1735409529209,4.0724,3394.8,3394.7,0.29509]
[1735409530301,14.41130009,3394.8,3394.7,0.29509]
[1735409531391,13.97810009,3394.8,3394.7,0.29509]
[1735409532902,14.27319009,3394.8,3394.7,0.29509]
[1735409534201,0.29511,3394.6,3394.5,0.2951]
[1735409535103,13.97810009,3394.8,3394.2,0.73785]
[1735409535305,13.97810009,3394.8,3394.7,0.2951]
[1735409536304,3.6392,3394.8,3394.7,0.2951]
[1735409536901,3.6392,3394.8,3394.5,0.2951]
[1735409537097,0.29511,3394.6,3394.5,0.2951]
[1735409538103,3.6392,3394.8,3394.3,0.29512]
[1735409538104,0.29513,3394.4,3394.3,0.29512]
[1735409538696,0.73323,3394.4,3394.3,0.29512]
[1735409539108,11.94137031,3394.4,3394.3,0.29512]
[1735409539605,11.64624031,3394.4,3393.9,0.73792]
[1735409539803,0.29514,3394.3,3394.2,0.29513]
[1735409540803,11.50328031,3394.3,3394.2,0.29513]
[1735409541705,11.94598031,3394.3,3393.8,3.2078]
[1735409542009,11.94598031,3394.3,3393.5,0.29519]
[1735409542010,0.2952,3393.6,3393.5,0.29519]
[1735409542504,2.39689542,3394.1,3393.3,3.2078]
[1735409542505,0.29521,3393.4,3393.3,3.2078]
[1735409542718,1.60683,3393.9,3393.3,3.2078]
[1735409542897,0.29521,3393.5,3393.4,0.29521]
[1735409543312,0.29518,3393.8,3393.7,0.29517]
[1735409543613,0.29518,3393.8,3393.4,0.73803]
[1735409543913,0.29518,3393.8,3393.7,0.29518]
[1735409545313,11.48538592,3393.8,3393.7,0.29518]
[1735409546316,11.19020592,3393.8,3393.3,3.2078]
[1735409546706,0.29521,3393.5,3393.4,0.29521]
[1735409546916,11.98761571,3393.8,3393.3,3.2078]
[1735409547109,0.29519,3393.7,3393.6,0.29518]
[1735409547711,10.62380029,3393.7,3393.6,0.29518]
[1735409549214,4.87169969,3393.7,3393.6,0.29518]
[1735409550510,4.87169969,3393.7,3393.5,0.29519]
[1735409550511,0.2952,3393.6,3393.5,0.29519]
[1735409551813,5.33495166,3393.6,3393.5,0.29519]
[1735409552018,0.29523,3393.3,3393.2,0.29522]
[1735409553612,5.33498166,3393.3,3393.2,0.29522]
[1735409553819,5.03975166,3393.3,3392.8,3.2078]
[1735409554118,3.94593,3393.0,3392.2,3.2078]
[1735409554313,3.94593,3393.0,3392.6,0.29528]
[1735409554615,0.29528,3392.7,3392.6,0.29528]
[1735409555717,0.73822955,3392.7,3392.6,0.29528]
[1735409556123,1.17692955,3392.7,3392.6,0.29528]
[1735409556829,4.61783718,3392.7,3392.6,0.29528]
[1735409558036,4.32255718,3392.7,3392.6,0.29528]
[1735409558322,3.88385718,3392.7,3392.6,0.29528]
[1735409558524,3.58935718,3392.7,3392.6,8.50308]
[1735409559428,3.73612763,3393.3,3393.2,0.29523]
[1735409560418,0.29524,3393.2,3393.1,0.29523]
[1735409561825,3.73612763,3393.3,3393.2,0.29523]
[1735409562025,0.29522,3393.3,3393.2,0.29523]
[1735409563327,0.29524,3393.2,3393.1,0.29523]
[1735409563521,0.29526,3392.9,3392.8,0.29525]
[1735409563726,0.29528,3392.7,3392.6,0.29527]
[1735409564044,0.2953,3392.4,3392.3,0.29529]
[1735409564228,0.2953,3392.3,3392.2,3.50311]
[1735409564427,0.29533,3392.1,3392.0,0.29533]
[1735409565624,0.29532,3392.2,3392.1,0.29532]
[1735409566227,3.649,3392.3,3391.7,4.63901495]
[1735409566431,0.29533,3392.1,3392.0,0.29533]
[1735409570432,0.29534,3391.9,3391.8,0.29534]
[1735409571021,0.73829,3392.2,3391.3,3.2078]
[1735409571226,0.73829,3392.2,3391.6,0.29536]
[1735409571227,0.29536,3391.7,3391.6,0.29536]
[1735409571434,0.73829,3392.2,3391.3,3.2078]
[1735409571744,0.29538,3391.5,3391.4,0.29538]
[1735409572030,0.4364,3391.6,3391.5,0.29537]
[1735409573131,6.64870763,3392.4,3391.8,0.29535]
[1735409573432,0.29531,3392.3,3392.2,0.29531]
[1735409573828,7.08450763,3392.4,3391.8,0.29535]
[1735409574036,7.08450763,3392.4,3391.6,0.8811]
[1735409574235,3.2078,3391.8,3391.6,0.8811]
[1735409574442,3.2078,3391.8,3391.7,0.29536]
[1735409574833,4.0826,3391.8,3391.7,0.29536]
[1735409575028,4.37795,3391.8,3391.7,0.29536]
[1735409575249,4.0826,3391.8,3391.2,0.8575]
[1735409575425,4.0826,3391.8,3391.6,0.29536]
[1735409575426,0.29536,3391.7,3391.6,0.29536]
[1735409576232,4.0826,3391.8,3391.2,0.8575]
[1735409576435,0.8748,3391.8,3391.7,0.29536]
[1735409579043,3.633,3392.0,3391.3,3.94628]
[1735409579238,3.92833,3392.0,3391.9,0.29534]
[1735409580034,3.633,3392.0,3391.3,3.94628]
[1735409580234,0.29536,3391.8,3391.7,0.29535]
[1735409582551,0.29537,3391.6,3391.5,0.29537]
[1735409582739,0.74256,3391.7,3391.6,0.29537]
[1735409583038,0.4472,3391.7,3391.6,0.29537]
[1735409583935,3.633,3392.0,3391.9,0.29534]
[1735409584143,0.4252,3392.0,3391.9,0.29534]
[1735409584330,3.90620763,3392.3,3392.2,0.29531]
[1735409584858,3.44090763,3392.3,3392.2,0.29531]
[1735409585343,3.2078,3392.5,3391.7,1.18509]
[1735409585537,3.50314,3392.0,3391.9,0.29533]
[1735409585939,3.2078,3392.0,3391.9,0.29533]
[1735409586340,0.4497,3392.1,3392.0,0.29533]
[1735409587032,0.74502,3392.1,3392.0,0.29533]
[1735409587346,3.95282,3392.1,3392.0,0.29533]
[1735409588849,3.6575,3392.1,3392.0,0.29533]
[1735409589539,3.95282,3392.1,3392.0,0.29533]
[1735409589940,3.6575,3392.1,3392.0,0.29533]
[1735409591248,3.2078,3392.1,3392.0,0.29533]
[1735409593743,3.50312,3392.1,3392.0,0.29533]
[1735409593941,3.2078,3392.1,3392.0,0.29533]
[1735409594145,3.50312,3392.1,3392.0,0.29533]
[1735409595746,6.94402763,3392.1,3392.0,0.29533]
[1735409596538,6.64870763,3392.1,3392.0,0.29533]
[1735409596737,3.44090763,3392.1,3392.0,0.29533]
[1735409597144,3.73622763,3392.1,3392.0,0.29533]
[1735409597744,5.79931597,3392.1,3392.0,0.29533]
[1735409599044,3.50312,3392.1,3392.0,0.29533]
[1735409599547,0.29534,3392.0,3391.9,0.29533]
[1735409599740,1.17924,3392.0,3391.9,0.29533]
[1735409600448,0.8839,3392.0,3391.9,0.29533]
[1735409601843,1.17924,3392.0,3391.9,0.29533]
[1735409602643,0.8839,3392.0,3391.9,0.29533]
[1735409602849,1.17924,3392.0,3391.9,0.29533]
[1735409603256,0.8839,3392.0,3391.9,0.29533]
[1735409605862,4.32480763,3392.0,3391.9,0.29533]
[1735409606070,4.62014763,3392.0,3391.9,0.29533]
[1735409607363,1.62240292,3392.0,3391.9,0.29533]
[1735409609661,1.32706292,3392.0,3391.9,0.29533]
[1735409609966,1.62239292,3392.0,3391.9,0.29533]
[1735409610163,1.32706292,3392.0,3391.9,0.29533]
[1735409610665,0.44316292,3392.0,3391.9,0.29533]
[1735409613261,5.05324204,3392.0,3391.9,0.29533]
[1735409614667,6.19526352,3392.1,3391.6,0.73843]
[1735409614860,6.19526352,3392.1,3392.0,0.29533]
[1735409616058,6.49058352,3392.1,3392.0,0.29533]
[1735409616264,0.73848292,3392.1,3392.0,0.29533]
[1735409618561,10.62386982,3392.1,3392.0,0.29533]
[1735409620871,10.32854982,3392.1,3391.6,1.19303]
[1735409621172,10.32854982,3392.1,3391.5,7.84681495]
[1735409621173,0.29536,3391.8,3391.7,0.29535]
[1735409622871,5.35260095,3391.8,3391.7,0.29535]
[1735409623779,5.05724095,3391.8,3391.5,3.2078]
[1735409624069,1.62016,3391.7,3391.6,0.29536]
[1735409625872,11.95235888,3391.7,3391.6,0.29536]
[1735409627476,5.90489828,3391.7,3391.6,0.29536]
[1735409627975,5.02489828,3391.7,3391.6,0.29536]
[1735409628167,4.58009828,3391.7,3391.6,0.29536]
[1735409628678,4.58009828,3391.7,3391.6,3.50316]
[1735409629175,3.46381876,3391.7,3391.6,3.50316]
[1735409630481,2.30875782,3391.7,3391.6,7.84681495]
[1735409630681,2.30875782,3391.7,3391.6,8.14218495]
[1735409631486,2.60411782,3391.7,3391.6,4.93438495]
[1735409631680,0.75276,3391.7,3391.6,4.93438495]
[1735409632988,5.3304055,3391.7,3391.6,0.29537]
[1735409633499,5.0350455,3391.7,3391.6,0.29537]
[1735409635389,5.5158064,3391.7,3391.6,0.29537]
[1735409635889,5.8111664,3391.7,3391.6,0.29537]
[1735409636787,5.36800348,3391.7,3391.6,0.29537]
[1735409636988,5.07264348,3391.7,3391.6,0.29537]
[1735409637392,5.36800348,3391.7,3391.6,0.29537]
[1735409637889,5.8111664,3391.7,3391.6,0.29537]
[1735409639584,1.19592292,3391.7,3391.6,0.29537]
[1735409640186,0.90056292,3391.7,3391.6,0.29537]
[1735409640592,1.19592292,3391.7,3391.6,0.29537]
[1735409640891,0.75276,3391.7,3391.6,0.29537]
[1735409641094,0.4574,3391.7,3391.6,0.29537]
[1735409641996,5.0717138,3391.7,3391.6,0.29537]
[1735409642194,5.51487672,3391.7,3391.6,0.29537]
[1735409644396,5.51487672,3391.7,3391.3,4.63901495]
[1735409644591,0.2954,3391.4,3391.3,0.2954]
[1735409645595,5.35359392,3391.4,3391.3,0.2954]
[1735409647391,5.05819392,3391.4,3391.3,0.2954]
[1735409647591,5.35358392,3391.4,3391.3,0.2954]
[1735409648697,5.05819392,3391.4,3391.3,0.2954]
[1735409649707,0.44316292,3391.4,3391.3,0.2954]
[1735409650990,3.90230493,3391.5,3391.2,5.53721495]
[1735409651199,3.90230493,3391.5,3391.4,0.29539]
[1735409656910,3.90230493,3391.5,3391.4,1.95439542]
[1735409658907,2.30674327,3391.5,3391.4,1.95439542]
[1735409662011,2.30674327,3391.5,3391.4,6.59341037]
[1735409663505,3.45914201,3391.6,3391.4,13.30870485]
[1735409663506,2.30674327,3391.6,3391.4,13.30870485]
[1735409663703,2.30674327,3391.6,3391.5,0.29537]
[1735409664718,2.30674327,3391.6,3391.5,4.94126298]
[1735409665806,2.30674327,3391.6,3391.5,5.67284607]
[1735409669218,2.30674327,3391.6,3391.5,4.94126298]
[1735409669413,2.30674327,3391.6,3391.5,5.67284607]
[1735409670722,0.44316625,3391.6,3391.5,0.73158309]
[1735409670904,0.44316625,3391.6,3391.5,1.02695309]
[1735409671108,0.44316625,3391.6,3391.5,0.29537]
[1735409672015,4.615031,3391.6,3391.5,0.29537]
[1735409672209,4.615031,3391.6,3391.4,0.73846]
[1735409672410,0.29538,3391.5,3391.4,0.29538]
[1735409673511,4.87132697,3391.5,3391.4,0.29538]
[1735409673814,4.57594697,3391.5,3391.4,0.29538]
[1735409674615,4.87131697,3391.5,3391.4,0.29538]
[1735409674813,9.90581199,3391.5,3391.4,0.29538]
[1735409675026,10.20118199,3391.5,3391.4,0.29538]
[1735409675414,9.90581199,3391.5,3391.4,0.29538]
[1735409675613,9.90581199,3391.5,3391.2,0.73158309]
[1735409676523,4.57594697,3391.5,3391.2,0.73158309]
[1735409677218,4.57594697,3391.5,3391.4,0.29538]
[1735409677219,4.87132697,3391.5,3391.4,0.29538]
[1735409677624,0.73854625,3391.5,3391.4,0.29538]
[1735409677822,0.29539,3391.4,3391.3,0.29539]
[1735409680333,5.77303127,3391.5,3391.1,3.93938309]
[1735409680527,6.06841127,3391.5,3391.4,0.29538]
[1735409680716,9.27621127,3391.5,3391.4,0.29538]
[1735409681024,0.29539,3391.4,3391.3,0.29538]
[1735409683029,0.29541,3391.3,3391.2,0.29539]
[1735409685230,5.34803252,3391.3,3391.2,0.29539]
[1735409685444,5.78420561,3391.3,3390.8,0.73859]
[1735409685743,0.29542,3391.1,3391.0,0.29541]
[1735409685928,3.50322,3391.1,3391.0,0.29541]
[1735409686631,8.11260248,3391.1,3391.0,0.29541]
[1735409686823,0.29543,3390.9,3390.8,0.29542]
[1735409687933,5.34805252,3390.9,3390.8,0.29542]
[1735409689238,0.73867004,3390.9,3390.8,0.29542]
[1735409691443,0.44324004,3390.9,3390.5,0.73158309]
[1735409691628,1.17482313,3390.9,3390.4,0.4246]
[1735409691834,3.50326,3390.6,3390.5,0.29545]
[1735409692535,3.2078,3390.6,3390.5,0.29545]
[1735409692738,3.50325,3390.6,3390.5,0.29545]
[1735409693036,4.1165,3390.6,3390.5,0.29545]
[1735409693235,3.6605,3390.6,3390.5,0.29545]
[1735409693437,3.6605,3390.6,3390.5,0.72575]
[1735409694425,3.2078,3390.6,3390.5,0.72575]
[1735409696041,2.75309679,3390.9,3390.8,0.29544]
[1735409699145,3.04852679,3390.9,3390.8,0.29544]
[1735409699438,2.75309679,3390.9,3390.8,0.29544]
[1735409699940,3.04852679,3390.9,3390.8,0.29544]
[1735409703041,2.75309679,3390.9,3390.8,0.29544]
[1735409705446,3.04852679,3390.9,3390.8,0.29544]
[1735409707553,2.75309679,3390.9,3390.8,0.29544]
[1735409707955,0.4527,3390.9,3390.8,0.29544]
[1735409708645,0.74813,3390.9,3390.8,0.29544]
[1735409710157,0.4527,3390.9,3390.8,0.29544]
[1735409710347,0.74813,3390.9,3390.8,0.29544]
[1735409711242,0.4527,3390.9,3390.7,0.73158309]
[1735409711448,0.29544,3390.8,3390.7,1.02702309]
[1735409711944,0.74813,3390.9,3390.8,0.29544]
[1735409712562,4.19923358,3390.9,3390.8,0.29544]
[1735409714049,4.64252639,3390.9,3390.8,0.29544]
[1735409714453,0.29545,3390.7,3390.5,0.29546]
[1735409714748,0.29545,3390.7,3390.6,0.29545]
[1735409715444,4.34709639,3390.9,3390.5,0.29546]
[1735409715445,2.30038171,3390.6,3390.5,0.29546]
[1735409716069,0.29546,3390.5,3390.4,0.4246]
[1735409716250,0.29546,3390.5,3390.1,4.64589298]
[1735409716251,0.4254,3390.5,3390.1,4.64589298]
[1735409716453,0.29549,3390.2,3390.1,4.64589298]
[1735409716946,0.29549,3390.2,3390.0,1.02708309]
[1735409717146,3.6486,3390.4,3390.0,0.73158309]
[1735409717353,3.6486,3390.4,3390.1,0.29549]
[1735409717354,3.94407,3390.4,3390.1,0.29549]
[1735409717551,3.6486,3390.4,3390.1,0.75389]
[1735409718457,3.89447144,3390.3,3390.2,0.29549]
[1735409719756,3.45110358,3390.3,3390.2,0.29549]
[1735409721156,8.25798248,3390.4,3390.1,0.4584]
[1735409721357,8.25798248,3390.4,3390.3,0.29548]
[1735409722058,8.25798248,3390.4,3390.1,0.4584]
[1735409722359,0.29548,3390.3,3390.2,0.29548]
[1735409722856,4.09196432,3390.4,3390.3,0.29548]
[1735409723858,4.09196432,3390.4,3390.3,1.02706309]
[1735409724257,4.09196432,3390.4,3390.3,0.29548]
[1735409724662,4.09196432,3390.4,3390.3,1.02706309]
[1735409724963,0.44336432,3390.4,3390.3,1.02706309]
[1735409725668,4.60938248,3390.5,3390.4,0.29547]
[1735409725854,2.48598248,3390.5,3390.4,0.29547]
[1735409726158,1.84039248,3390.5,3390.4,5.29547]
[1735409726357,1.15653248,3390.5,3390.4,5.29547]
[1735409726564,0.49617248,3390.5,3390.4,5.29547]
[1735409726753,5.77303127,3390.7,3390.6,0.29545]
[1735409726957,2.29987696,3391.1,3391.0,0.29542]
[1735409727280,2.29987696,3391.1,3391.0,3.50322]
[1735409728664,2.29987696,3391.4,3391.3,0.29539]
[1735409729373,2.29987696,3391.4,3391.0,3.2078]
[1735409729558,0.2954,3391.2,3391.0,3.50321]
[1735409729760,0.888,3391.1,3391.0,3.50321]
[1735409729965,1.3376,3391.1,3391.0,3.50321]
[1735409730876,0.2954,3391.3,3391.0,3.2078]
[1735409731167,3.6314,3391.2,3390.9,6.96179912]
[1735409731373,2.29987696,3391.1,3390.5,4.63994959]
[1735409731563,0.29543,3390.9,3390.7,0.29544]
[1735409732459,0.29544,3390.8,3390.5,4.63994959]
[1735409732769,0.29544,3390.8,3390.6,0.29545]
[1735409732969,2.59531696,3390.8,3390.6,0.29545]
[1735409733167,2.59531696,3390.8,3390.1,6.30491242]
[1735409733168,3.2078,3390.7,3390.1,4.63994959]
[1735409733385,0.29546,3390.5,3390.3,0.29547]
[1735409733567,0.72077,3390.4,3390.2,0.29548]
[1735409733768,1.14477,3390.4,3390.2,0.29548]
[1735409734175,1.14477,3390.4,3390.0,0.2955]
[1735409734176,3.2078,3390.3,3390.0,0.2955]
[1735409734369,0.29549,3390.2,3390.0,0.2955]
[1735409734565,3.2078,3390.3,3389.9,0.5001]
[1735409734764,0.29549,3390.2,3390.0,0.29551]
[1735409734963,3.50328,3390.3,3390.1,0.29549]
[1735409735163,3.2078,3390.3,3389.9,0.5001]
[1735409735372,3.2078,3390.3,3389.8,4.63994959]
[1735409735373,0.29551,3389.9,3389.8,4.63994959]
[1735409735967,0.29553,3389.8,3389.5,4.93549959]
[1735409736269,2.29987696,3390.1,3389.5,4.63994959]
[1735409736270,0.29553,3389.7,3389.5,4.63994959]
[1735409736480,0.29553,3389.7,3389.5,4.93548959]
[1735409736674,0.74194,3389.6,3389.5,2.52674959]
[1735409736863,0.4464,3389.6,3389.5,2.82229959]
[1735409737678,0.4464,3389.6,3389.5,0.29555]
[1735409737679,2.74627696,3389.6,3389.5,0.29555]
[1735409740164,2.74627696,3389.6,3388.9,1.1893]
[1735409740165,2.72467696,3389.7,3389.4,1.66496283]
[1735409740363,2.29987696,3389.7,3389.6,0.29554]
[1735409740566,2.29987696,3389.7,3389.6,3.50334]
[1735409740762,2.29987696,3389.7,3389.6,8.50334]
[1735409740979,3.44981544,3389.8,3389.6,8.2078]
[1735409741172,3.44981544,3389.8,3389.7,1.96049283]
[1735409741373,3.90771544,3390.5,3389.7,1.66496283]
[1735409741569,3.90771544,3390.5,3390.4,0.29547]
[1735409742568,0.4579,3390.5,3390.4,0.29547]
[1735409746879,3.6657,3390.5,3390.4,0.29547]
[1735409748881,3.6657,3390.5,3389.8,3.2078]
[1735409749179,3.2078,3390.0,3389.9,0.29551]
[1735409749877,3.2078,3390.0,3389.2,3.2078]
[1735409750081,0.4315,3389.9,3389.8,0.29552]
[1735409752283,3.44981544,3390.3,3389.8,0.29552]
[1735409752484,3.44981544,3390.3,3390.2,0.29549]
[1735409752883,0.4659,3390.4,3390.0,4.87276283]
[1735409753182,0.4659,3390.4,3390.3,0.29548]
[1735409763388,6.65761544,3390.8,3390.7,0.29544]
[1735409763585,6.65761544,3390.8,3390.1,0.73875]
[1735409763586,3.2078,3390.8,3390.1,0.73875]
[1735409763887,0.29545,3390.7,3390.5,0.29546]
[1735409764193,3.2078,3390.8,3390.1,0.73875]
[1735409764391,3.2078,3390.8,3390.6,0.29545]
[1735409764587,0.29544,3390.7,3390.6,0.29545]
[1735409764891,0.4694,3390.7,3390.6,0.29545]
[1735409768308,0.4694,3390.7,3390.0,4.87276283]
[1735409768505,0.4694,3390.7,3390.0,3.2078]
[1735409768696,0.2955,3390.1,3390.0,3.2078]
[1735409769597,0.29551,3390.0,3389.5,1.03443]
[1735409769798,0.4319,3389.9,3389.8,0.29552]
[1735409771705,0.72742,3389.9,3389.8,0.29552]
[1735409771906,0.29552,3389.8,3389.7,0.29553]
[1735409772107,0.4318,3389.8,3389.7,0.29553]
[1735409772320,0.72733,3389.8,3389.6,0.29553]
[1735409772503,0.4318,3389.8,3389.7,0.29553]
[1735409774001,0.4318,3389.8,3389.4,5.61165283]
[1735409774002,0.4318,3389.8,3389.4,3.2078]
[1735409774507,0.4319,3389.9,3389.4,4.87276283]
[1735409774710,0.4319,3389.9,3389.8,0.29552]
[1735409776006,3.88521544,3390.0,3389.9,0.29552]
[1735409776413,3.44981544,3390.0,3389.9,0.29552]
[1735409777904,3.44981544,3390.0,3389.8,0.29552]
[1735409777905,3.74532544,3390.0,3389.8,0.29552]
[1735409778115,3.74532544,3390.0,3389.5,0.73886]
[1735409778906,3.74532544,3390.0,3389.9,0.29552]
[1735409779504,3.44981544,3390.0,3389.9,0.29552]
[1735409780807,3.44981544,3390.0,3389.4,3.2078]
[1735409781010,0.29554,3389.7,3389.5,0.29554]
[1735409781321,0.4278,3389.6,3389.5,0.29554]
[1735409781507,0.29555,3389.5,3389.0,1.66496283]
[1735409781712,0.29555,3389.5,3389.4,0.29556]
[1735409781912,1.3054,3389.6,3388.9,3.2078]
[1735409782130,0.29557,3389.3,3389.0,0.29559]
[1735409782310,0.29557,3389.3,3388.9,3.2078]
[1735409782705,0.29556,3389.4,3389.1,0.29558]